[Event "FIDE World Cup O10-TB 2024"]
[Site "Batumi"]
[Date "2024.07.02"]
[Round "2.1"]
[White "Ling, Chenxuan"]
[Black "Bolashakov, Nurali"]
[Result "1/2-1/2"]
[ECO "E60"]
[WhiteElo "1868"]
[BlackElo "1843"]
[Annotator "NA RC"]
[PlyCount "79"]
[EventDate "2024.06.23"]
[EventType "swiss"]
[EventCountry "GEO"]
[SourceTitle "playchess.com"]
[Source "ChessBase"]
[SourceQuality "1"]
[TimeControl "5400+30"]

1. d4 {[%emt 0:00:05]} Nf6 {[%emt 0:00:16]} 2. c4 {[%emt 0:00:02]} g6 {[%emt 0:00:12]} 3. h4 {[%emt 0:00:07]} c5 {[%emt 0:04:00]} 4. d5 {[%emt 0:00:07]} d6 {[%emt 0:00:58]} 5. Nc3 {[%emt 0:01:06]} Bg7 {[%emt 0:00:51]} 6. e4 {[%emt 0:02:21]} Nbd7 {[%emt 0:01:45]} 7. f3 {[%emt 0:04:21]} h5 {[%emt 0:04:39]} 8. Nh3 {[%emt 0:04:08]} a6 {[%emt 0:05:55]} 9. Nf2 {[%emt 0:03:27]} Rb8 {[%emt 0:01:33]} 10. a4 {[%emt 0:02:47]} Ne5 {[%emt 0:03:30]} 11. Be2 {[%emt 0:02:24]} Bd7 {[%emt 0:01:50]} 12. Bf4 {[%emt 0:10:29]} Bh6 {[%emt 0:05:24]} 13. g3 {[%emt 0:01:14]} Qb6 {[%emt 0:07:23]} 14. Qd2 {[%emt 0:02:39]} Ng8 {[%emt 0:04:14]} 15. Qc2 {[%emt 0:06:51]} Bg7 {[%emt 0:05:13]} 16. Bd2 {[%emt 0:03:16]} Qc7 {[%emt 0:05:36]} 17. f4 {[%emt 0:01:38]} Ng4 {[%emt 0:00:22]} 18. Nxg4 {[%emt 0:00:10]} hxg4 {[%emt 0:01:28]} 19. O-O {[%emt 0:00:41]} f5 {[%emt 0:11:05]} 20. Bd3 {[%emt 0:01:50]} Nh6 {[%emt 0:01:42]} 21. Rae1 {[%emt 0:03:04]} O-O {[%emt 0:04:42]} 22. e5 {[%emt 0:01:44]} Kh7 {[%emt 0:02:06]} 23. exd6 {[%emt 0:13:25]} exd6 {[%emt 0:00:18]} 24. Re7 {[%emt 0:00:59]} Rbe8 {[%emt 0:01:57]} 25. Rfe1 {[%emt 0:00:18]} Rxe7 {[%emt 0:00:12]} 26. Rxe7 {[%emt 0:00:02]} Re8 {[%emt 0:02:47]} 27. Rxe8 {[%emt 0:00:48]} Bxe8 {[%emt 0:00:05]} 28. b3 {[%emt 0:01:09]} Qe7 {[%emt 0:00:48]} 29. Qd1 {[%emt 0:01:44]} Bd7 {[%emt 0:01:01]} 30. Qe2 {[%emt 0:00:50]} Qxe2 {[%emt 0:02:22]} 31. Bxe2 {[%emt 0:00:13]} Kg8 {[%emt 0:01:03]} 32. Bd3 {[%emt 0:03:48]} b6 {[%emt 0:01:27]} 33. a5 {[%emt 0:29:13]} bxa5 34. Na4 {[%emt 0:00:30]} Bxa4 35. bxa4 Kf7 {[%emt 0:21:16]} 36. Bxa5 {[%emt 0:01:00]} Ke7 37. Bc2 {[%emt 0:00:30]} Bd4+ {[%emt 0:01:00]} 38. Kf1 {[%emt 0:00:30]} Nf7 {[%emt 0:00:30]} 39. Bb6 {[%emt 0:00:30]} Nd8 {[%emt 0:00:30]} 40. a5 {[%emt 0:00:00]} 1/2-1/2

[Event "FIDE World Cup O10-TB 2024"]
[Site "Batumi"]
[Date "2024.07.02"]
[Round "2.2"]
[White "Chakrabarty, Reyaansh"]
[Black "Zabelin, Platon"]
[Result "1/2-1/2"]
[ECO "B13"]
[WhiteElo "2185"]
[BlackElo "1799"]
[Annotator "RC"]
[PlyCount "101"]
[EventDate "2024.06.23"]
[EventType "swiss"]
[EventCountry "GEO"]
[SourceTitle "playchess.com"]
[Source "ChessBase"]
[SourceQuality "1"]
[TimeControl "5400+30"]

1. e4 {[%emt 0:00:01]} c6 {[%emt 0:02:32]} 2. d4 {[%emt 0:00:04]} d5 {[%emt 0:00:09]} 3. exd5 {[%emt 0:00:04]} cxd5 {[%emt 0:00:01]} 4. Bd3 {[%emt 0:00:06]} Nc6 {[%emt 0:00:04]} 5. c3 {[%emt 0:00:06]} g6 {[%emt 0:00:10]} 6. Nf3 {[%emt 0:01:49]} Nf6 {[%emt 0:00:42]} 7. O-O {[%emt 0:00:41]} Bf5 {[%emt 0:01:32]} 8. Re1 {[%emt 0:08:05]} Bxd3 {[%emt 0:00:29]} 9. Qxd3 {[%emt 0:00:06]} Qc7 {[%emt 0:01:35]} 10. Ne5 {[%emt 0:03:00]} Bg7 {[%emt 0:01:30]} 11. Nxc6 {[%emt 0:01:54]} bxc6 {[%emt 0:01:55]} 12. b3 {[%emt 0:03:27]} O-O {[%emt 0:01:22]} 13. Ba3 {[%emt 0:00:16]} Rfe8 {[%emt 0:00:23]} 14. Nd2 {[%emt 0:02:46]} e5 {[%emt 0:01:50]} 15. dxe5 {[%emt 0:06:48]} Rxe5 {[%emt 0:00:05]} 16. Rxe5 {[%emt 0:00:05]} Qxe5 {[%emt 0:00:09]} 17. Nf3 {[%emt 0:00:03]} Qc7 {[%emt 0:09:59]} 18. Bb2 {[%emt 0:11:24]} Ne4 {[%emt 0:00:23]} 19. Nd2 {[%emt 0:02:43]} f5 {[%emt 0:02:08]} 20. Nxe4 {[%emt 0:04:27]} fxe4 {[%emt 0:00:18]} 21. Qe2 {[%emt 0:05:38]} Be5 {[%emt 0:02:05]} 22. h3 {[%emt 0:06:16]} Qg7 {[%emt 0:00:48]} 23. Qe3 {[%emt 0:03:24]} Rf8 {[%emt 0:01:43]} 24. Rf1 {[%emt 0:03:20]} Bc7 {[%emt 0:00:26]} 25. Qd4 {[%emt 0:04:54]} Bb6 {[%emt 0:01:34]} 26. Qxg7+ {[%emt 0:01:28]} Kxg7 {[%emt 0:00:18]} 27. Bc1 {[%emt 0:02:03]} c5 {[%emt 0:02:45]} 28. Rd1 {[%emt 0:02:43]} d4 {[%emt 0:01:15]} 29. cxd4 {[%emt 0:27:19]} cxd4 {[%emt 0:00:05]} 30. Bb2 {[%emt 0:00:00]} Kg8 {[%emt 0:00:48]} 31. Rxd4 {[%emt 0:00:00]} Bxd4 {[%emt 0:00:10]} 32. Bxd4 {[%emt 0:00:00]} Kf7 {[%emt 0:01:07]} 33. Bxa7 {[%emt 0:00:00]} Ra8 {[%emt 0:00:05]} 34. Bc5 {[%emt 0:00:00]} Rxa2 {[%emt 0:00:08]} 35. b4 {[%emt 0:03:00]} Ra1+ {[%emt 0:01:21]} 36. Kh2 {[%emt 0:00:00]} Ke6 {[%emt 0:00:12]} 37. g3 {[%emt 0:00:00]} Kd5 {[%emt 0:01:33]} 38. Kg2 {[%emt 0:00:00]} Kc4 {[%emt 0:00:13]} 39. h4 {[%emt 0:00:00]} Ra3 {[%emt 0:02:00]} 40. Kh3 {[%emt 0:00:00]} h5 {[%emt 0:00:38]} 41. Kg2 {[%emt 0:00:00]} Rb3 {[%emt 0:00:18]} 42. Be3 {[%emt 0:00:00]} Rxe3 {[%emt 0:04:25]} 43. fxe3 {[%emt 0:00:00]} Kxb4 {[%emt 0:00:05]} 44. g4 {[%emt 0:00:00]} Kc4 {[%emt 0:00:53]} 45. Kg3 {[%emt 0:00:00]} Kc3 {[%emt 0:00:07]} 46. Kf4 {[%emt 0:00:00]} hxg4 {[%emt 0:00:04]} 47. Kxe4 {[%emt 0:00:00]} g3 {[%emt 0:00:18]} 48. Kf3 {[%emt 0:00:00]} Kd3 {[%emt 0:00:07]} 49. Kxg3 {[%emt 0:00:00]} Kxe3 {[%emt 0:00:06]} 50. Kg4 {[%emt 0:00:00]} Kf2 {[%emt 1:02:37]} 51. Kg5 1/2-1/2

[Event "FIDE World Cup O10-TB 2024"]
[Site "Batumi"]
[Date "2024.07.02"]
[Round "2.3"]
[White "Yu, Zechen"]
[Black "Shangin, Lev"]
[Result "1/2-1/2"]
[ECO "B45"]
[WhiteElo "1889"]
[BlackElo "2031"]
[Annotator "NA RC"]
[PlyCount "53"]
[EventDate "2024.06.23"]
[EventType "swiss"]
[EventCountry "GEO"]
[SourceTitle "playchess.com"]
[Source "ChessBase"]
[SourceQuality "1"]
[TimeControl "5400+30"]

1. e4 {[%emt 0:00:03]} c5 {[%emt 0:00:17]} 2. Nf3 {[%emt 0:00:09]} e6 {[%emt 0:00:10]} 3. d4 {[%emt 0:00:11]} cxd4 {[%emt 0:00:17]} 4. Nxd4 {[%emt 0:00:08]} Nf6 {[%emt 0:00:32]} 5. Nc3 {[%emt 0:00:22]} Nc6 {[%emt 0:00:44]} 6. Ndb5 {[%emt 0:04:03]} Bc5 {[%emt 0:00:54]} 7. Bf4 {[%emt 0:00:10]} O-O {[%emt 0:00:19] B45: Sicilian Four Knights.} 8. Bc7 {[%emt 0:00:53]} Qe7 {[%emt 0:00:16]} 9. Bd6 {[%emt 0:00:15]} Bxd6 {[%emt 0:00:42]} 10. Qxd6 {[%emt 0:00:20]} Qd8 {[%emt 0:00:26]} 11. O-O-O {[%emt 0:00:53]} a6 {[%emt 0:01:19]} 12. Nd4 {[%emt 0:05:53]} Ne7 {[%emt 0:02:25]} 13. e5 {[%emt 0:17:05]} Ne8 {[%emt 0:01:11]} 14. Qb4 {[%emt 0:01:03]} Nc7 {[%emt 0:06:28]} 15. Qb6 {[%emt 0:01:51]} Ned5 {[%emt 0:07:15]} 16. Nxd5 {[%emt 0:00:38]} Nxd5 {[%emt 0:00:13]} 17. Qxd8 {[%emt 0:00:48]} Rxd8 {[%emt 0:00:01]} 18. Bc4 {[%emt 1:04:45]} Nc7 {[%emt 0:01:32]} 19. Be2 {[%emt 0:00:00]} f6 {[%emt 0:06:28]} 20. f4 {[%emt 0:00:00]} Nd5 {[%emt 0:01:24]} 21. Bc4 {[%emt 0:00:00]} fxe5 {[%emt 0:12:17]} 22. fxe5 {[%emt 0:00:00]} b5 $16 {[%emt 0:06:07]} ({Avoid the trap} 22... Ne3 $2 23. Nxe6 Nxc4 24. Nxd8 $18) 23. Bxd5 {[%emt 0:00:00]} exd5 {[%emt 0:00:02]} 24. Nf5 {[%emt 0:00:00]} Bb7 {[%emt 0:03:26]} 25. Ne7+ {[%emt 0:00:00]} Kf7 {[%emt 0:00:07]} 26. Nxd5 {[%emt 0:00:00]} Rac8 {[%emt 0:03:16]} 27. Rhe1 {[%emt 0:04:30]} 1/2-1/2

[Event "FIDE World Cup O10-TB 2024"]
[Site "Batumi"]
[Date "2024.07.02"]
[Round "2.4"]
[White "Vyom Malhotra"]
[Black "Zhauynbay, Alimzhan"]
[Result "0-1"]
[ECO "B23"]
[WhiteElo "1803"]
[BlackElo "1903"]
[Annotator "NA RC"]
[PlyCount "242"]
[EventDate "2024.06.23"]
[EventType "swiss"]
[EventCountry "GEO"]
[SourceTitle "playchess.com"]
[Source "ChessBase"]
[SourceQuality "1"]
[TimeControl "5400+30"]

1. e4 {[%emt 0:04:13]} c5 {[%emt 0:00:04]} 2. Nc3 {[%emt 0:00:11]} d6 {[%emt 0:00:36]} 3. f4 {[%emt 0:00:13]} g6 {[%emt 0:00:36]} 4. Nf3 {[%emt 0:00:13]} Bg7 {[%emt 0:01:04]} 5. Bb5+ {[%emt 0:00:56]} Bd7 {[%emt 0:00:22]} 6. Bc4 {[%emt 0:00:37] B23: Closed Sicilian: Lines without g3.} Nc6 {[%emt 0:02:34]} 7. d3 {[%emt 0:00:24] now supersedes 7.0-0.} e6 {[%emt 0:02:25]} 8. O-O {[%emt 0:00:23]} Nge7 {[%emt 0:01:04]} 9. a3 {[%emt 0:02:48]} O-O {[%emt 0:01:52]} 10. Be3 {[%emt 0:03:37]} Nd4 {[%emt 0:01:27]} 11. Ba2 {[%emt 0:08:47]} Nec6 {[%emt 0:03:56]} 12. Rb1 $146 {[%emt 0:02:28]} ({Predecessor:} 12. Kh1 b5 13. Qd2 a5 14. Rae1 b4 15. Nd1 b3 16. cxb3 Rb8 17. Qf2 Nxf3 18. Qxf3 {½-½ Tagelsir,A (2232)-Yang,C (2172) Olympiad-44 Chennai 2022 (10.1)}) 12... b5 {[%emt 0:04:43]} 13. Ne2 {[%emt 0:02:14]} b4 {[%emt 0:05:24]} 14. Bxd4 {[%emt 0:02:38]} cxd4 {[%emt 0:00:57]} 15. axb4 {[%emt 0:00:12]} Nxb4 {[%emt 0:00:21]} 16. Bb3 {[%emt 0:00:01]} Qb6 {[%emt 0:02:31]} 17. Kh1 {[%emt 0:20:38]} a5 {[%emt 0:04:14]} 18. c3 {[%emt 0:02:02]} a4 {[%emt 0:01:54]} 19. Bc4 {[%emt 0:02:18]} Nc6 {[%emt 0:00:50]} 20. cxd4 {[%emt 0:00:24]} Nxd4 {[%emt 0:00:06]} 21. Nexd4 {[%emt 0:00:50]} Bxd4 {[%emt 0:00:10]} 22. Nxd4 {[%emt 0:00:07]} Qxd4 {[%emt 0:00:05]} 23. f5 {[%emt 0:02:11]} exf5 {[%emt 0:01:30]} 24. Rf4 $19 {[%emt 0:10:58]} Rab8 {[%emt 0:04:05]} 25. Qd2 {[%emt 0:05:03]} a3 {[%emt 0:04:08]} 26. b4 {[%emt 0:01:45]} fxe4 {[%emt 0:05:06]} 27. Rxe4 {[%emt 0:00:27]} Qg7 {[%emt 0:02:07]} 28. Re7 {[%emt 0:01:53]} Bf5 {[%emt 0:01:32]} 29. Qa2 {[%emt 0:02:11]} Qf6 {[%emt 0:02:51]} 30. Rbe1 {[%emt 0:01:35]} Rxb4 {[%emt 0:01:24]} 31. Qxa3 {[%emt 0:02:27]} Rb2 {[%emt 0:04:02]} 32. Qa7 {[%emt 0:07:25]} h5 {[%emt 0:06:38]} 33. Qe3 {[%emt 0:03:23]} h4 {[%emt 0:01:27]} 34. h3 {[%emt 0:01:09]} Kg7 {[%emt 0:03:13]} 35. Ra7 {[%emt 0:01:18]} Rbb8 {[%emt 0:03:02]} 36. Qe7 {[%emt 0:03:32]} Qxe7 {[%emt 0:01:18]} 37. Rexe7 {[%emt 0:00:30]} Kf6 {[%emt 0:00:46]} 38. Bxf7 {[%emt 0:01:40]} Rb1+ {[%emt 0:00:57]} 39. Kh2 {[%emt 0:00:08]} Rc8 {[%emt 0:00:45]} 40. Rec7 {[%emt 0:02:34]} Rxc7 {[%emt 0:01:12]} 41. Rxc7 {[%emt 0:00:06]} Bxd3 {[%emt 0:00:35]} 42. Bc4 {[%emt 0:00:22]} Be4 {[%emt 0:00:30]} 43. Rd7 {[%emt 0:01:44]} Ke5 {[%emt 0:01:21]} 44. Be2 {[%emt 0:01:30]} Rb2 {[%emt 0:01:17]} 45. Bf1 {[%emt 0:00:03]} d5 {[%emt 0:00:23]} 46. Re7+ {[%emt 0:00:27]} Kf4 {[%emt 0:00:31]} 47. Rh7 {[%emt 0:01:02]} g5 {[%emt 0:00:40]} 48. Rf7+ {[%emt 0:00:14]} Ke3 {[%emt 0:00:12]} 49. Rg7 {[%emt 0:00:53]} Rf2 {[%emt 0:02:52]} 50. Kg1 {[%emt 0:00:47]} Rf5 {[%emt 0:23:51]} 51. Ba6 {[%emt 0:00:44]} d4 {[%emt 0:00:00]} 52. Re7 {[%emt 0:01:03]} d3 {[%emt 0:00:00]} 53. Bxd3 {[%emt 0:00:21]} Kxd3 {[%emt 0:00:00]} 54. Ra7 {[%emt 0:00:07]} Ke3 {[%emt 0:00:00]} 55. Ra3+ {[%emt 0:00:06]} Bd3 {[%emt 0:00:00]} 56. Ra7 {[%emt 0:00:42]} Rf1+ {[%emt 0:00:00]} 57. Kh2 {[%emt 0:00:04]} Rf2 {[%emt 0:00:00]} 58. Rg7 {[%emt 0:00:34]} Kf4 {[%emt 0:00:00]} 59. Rf7+ {[%emt 0:00:15]} Bf5 {[%emt 0:00:00]} 60. Rf8 {[%emt 0:00:15]} Rb2 {[%emt 0:00:00]} 61. Rf7 {[%emt 0:00:21]} Re2 {[%emt 0:00:00]} 62. Rf8 {[%emt 0:00:11]} Re5 {[%emt 0:00:00]} 63. Rf7 {[%emt 0:00:34]} Rd5 {[%emt 0:00:00]} 64. Rf8 {[%emt 0:00:10]} Ke3 {[%emt 0:00:00]} 65. Rg8 {[%emt 0:00:50]} Be4 {[%emt 0:00:00]} 66. Rg7 {[%emt 0:00:09]} Rf5 {[%emt 0:00:00]} 67. Kg1 {[%emt 0:00:28]} Rd5 {[%emt 0:00:00]} 68. Kh2 {[%emt 0:00:13]} Kf2 {[%emt 0:00:00]} 69. Rf7+ {[%emt 0:00:16]} Rf5 {[%emt 0:00:00]} 70. Ra7 {[%emt 0:00:12]} Bd3 {[%emt 0:00:00]} 71. Ra3 {[%emt 0:00:20]} Be2 {[%emt 0:00:00]} 72. Rb3 {[%emt 0:00:24]} Rb5 {[%emt 0:00:00]} 73. Ra3 {[%emt 0:00:18]} Re5 {[%emt 0:00:00]} 74. Ra7 {[%emt 0:00:29]} Rf5 {[%emt 0:00:00]} 75. Ra3 {[%emt 0:00:16]} Rf4 {[%emt 0:00:00]} 76. Ra2 {[%emt 0:01:28]} g4 {[%emt 0:00:00]} 77. hxg4 {[%emt 0:00:06]} Rxg4 {[%emt 0:00:00]} 78. Kh3 {[%emt 0:00:06]} Re4 {[%emt 0:00:00]} 79. Rb2 {[%emt 0:00:17]} Re5 {[%emt 0:00:00]} 80. Ra2 {[%emt 0:00:42]} Rg5 {[%emt 0:00:00]} 81. Rb2 {[%emt 0:01:23]} Rg3+ {[%emt 0:00:00]} 82. Kxh4 {[%emt 0:00:17]} Rxg2 {[%emt 0:00:00]} 83. Ra2 {[%emt 0:00:13]} Rg4+ {[%emt 0:00:00]} 84. Kh3 {[%emt 0:00:05]} Rg5 {[%emt 0:00:00]} 85. Ra4 {[%emt 0:00:37]} Rd5 {[%emt 0:00:00]} 86. Rb4 {[%emt 0:00:19]} Kf3 {[%emt 0:00:00]} 87. Rb3+ {[%emt 0:00:37]} Bd3 {[%emt 0:00:00]} 88. Kh4 {[%emt 0:00:30]} Kf4 {[%emt 0:00:18]} 89. Rb6 {[%emt 0:04:31]} Bf5 {[%emt 0:00:55]} 90. Kh5 {[%emt 0:00:45]} Rd2 {[%emt 0:00:51]} 91. Kh6 {[%emt 0:00:14]} Rd7 {[%emt 0:00:04]} 92. Kh5 {[%emt 0:00:20]} Rh7+ {[%emt 0:01:11]} 93. Rh6 {[%emt 0:00:07]} Rg7 {[%emt 0:00:04]} 94. Rb6 {[%emt 0:00:34]} Re7 {[%emt 0:00:39]} 95. Rb4+ {[%emt 0:01:01]} Be4 {[%emt 0:00:06]} 96. Rb6 {[%emt 0:00:10]} Rh7+ {[%emt 0:00:18]} 97. Rh6 {[%emt 0:00:07]} Rb7 {[%emt 0:00:05]} 98. Rh8 {[%emt 0:01:30]} Bf5 {[%emt 0:00:38]} 99. Kh6 {[%emt 0:00:22]} Rc7 {[%emt 0:00:13]} 100. Kh5 {[%emt 0:00:07]} Ra7 {[%emt 0:00:34]} 101. Kh6 {[%emt 0:00:20]} Rf7 {[%emt 0:00:07]} 102. Kh5 {[%emt 0:00:12]} Rf6 {[%emt 0:00:08]} 103. Rg8 {[%emt 0:00:35]} Rc6 {[%emt 0:00:32]} 104. Rf8 {[%emt 0:00:58]} Rc2 {[%emt 0:01:09]} 105. Kh6 {[%emt 0:00:09]} Rh2+ {[%emt 0:00:06]} 106. Kg7 {[%emt 0:00:08]} Rg2+ {[%emt 0:00:11]} 107. Kf7 {[%emt 0:00:10]} Ra2 {[%emt 0:00:18]} 108. Re8 {[%emt 0:00:31]} Ra7+ {[%emt 0:00:11]} 109. Re7 {[%emt 0:00:05]} Ra8 {[%emt 0:00:06]} 110. Kf6 {[%emt 0:00:12]} Ra6+ {[%emt 0:00:06]} 111. Kf7 {[%emt 0:03:19]} Kg5 {[%emt 0:00:05]} 112. Rc7 {[%emt 0:00:00]} Rh6 {[%emt 0:00:12]} 113. Kg8 {[%emt 0:00:00]} Be6+ {[%emt 0:00:27]} 114. Kf8 {[%emt 0:00:00]} Kf6 {[%emt 0:00:09]} 115. Rf7+ {[%emt 0:00:00]} Ke5 {[%emt 0:00:25]} 116. Ra7 {[%emt 0:00:19]} Rh8+ {[%emt 0:00:55]} 117. Kg7 {[%emt 0:00:04]} Rg8+ {[%emt 0:00:07]} 118. Kh7 {[%emt 0:00:21]} Kf6 {[%emt 0:00:08]} 119. Ra6 {[%emt 0:00:59]} Rg4 {[%emt 0:00:24]} 120. Rxe6+ {[%emt 0:01:32]} Kxe6 {[%emt 0:00:05]} 121. Kh6 {[%emt 0:00:05]} Ke5 {[%emt 0:00:08]} 0-1

[Event "FIDE World Cup O10-TB 2024"]
[Site "Batumi"]
[Date "2024.07.02"]
[Round "2.5"]
[White "Karthik, Anand T."]
[Black "Ashwath Kaushik"]
[Result "1-0"]
[ECO "E06"]
[WhiteElo "2022"]
[BlackElo "2029"]
[Annotator "NA RC"]
[PlyCount "119"]
[EventDate "2024.06.23"]
[EventType "swiss"]
[EventCountry "GEO"]
[SourceTitle "playchess.com"]
[Source "ChessBase"]
[SourceQuality "1"]
[TimeControl "5400+30"]

1. d4 {[%emt 0:00:03]} d5 {[%emt 0:00:06]} 2. c4 {[%emt 0:00:08]} e6 {[%emt 0:00:09]} 3. g3 {[%emt 0:00:10]} Nf6 {[%emt 0:00:18]} 4. Bg2 {[%emt 0:00:13]} Be7 {[%emt 0:00:06]} 5. Nf3 {[%emt 0:00:19]} O-O {[%emt 0:00:07]} 6. O-O {[%emt 0:00:14]} c6 {[%emt 0:00:03]} 7. Nc3 {[%emt 0:00:49]} a5 {[%emt 0:00:04] E06: Closed Catalan: Early deviations.} 8. Ne5 {[%emt 0:02:50]} Nbd7 {[%emt 0:06:02]} 9. e4 {[%emt 0:02:51]} dxe4 {[%emt 0:02:09]} 10. Nxe4 {[%emt 0:00:45]} Nxe4 {[%emt 0:00:58]} 11. Bxe4 {[%emt 0:00:08]} Nf6 {[%emt 0:06:42]} 12. Bg2 {[%emt 0:00:28]} Qb6 {[%emt 0:01:47]} 13. Nf3 {[%emt 0:03:32]} Rd8 {[%emt 0:02:59]} 14. Qb3 {[%emt 0:01:50]} Qa6 {[%emt 0:00:56]} 15. Be3 {[%emt 0:01:37]} a4 {[%emt 0:00:42]} 16. Qc2 {[%emt 0:00:09]} b5 {[%emt 0:09:10]} 17. cxb5 {[%emt 0:01:23]} cxb5 {[%emt 0:01:57]} 18. Ne5 {[%emt 0:02:10]} Bb7 {[%emt 0:01:31]} 19. Qc7 {[%emt 0:01:57]} Bxg2 {[%emt 0:11:53]} 20. Qxe7 {[%emt 0:00:08]} Qb7 {[%emt 0:02:35]} 21. Qxf7+ {[%emt 0:00:58]} Qxf7 {[%emt 0:00:04]} 22. Nxf7 {[%emt 0:00:06]} Bxf1 {[%emt 0:01:54]} 23. Nxd8 {[%emt 0:01:56]} Bc4 {[%emt 0:02:53]} 24. Nb7 {[%emt 0:00:46]} Bd5 {[%emt 0:02:29]} 25. Nc5 {[%emt 0:00:04]} Kf7 {[%emt 0:04:04]} 26. a3 {[%emt 0:00:16]} Rc8 {[%emt 0:41:52]} 27. Rc1 {[%emt 0:00:30]} Ne4 {[%emt 0:00:00]} 28. Nd3 {[%emt 0:00:55]} Rxc1+ {[%emt 0:00:00]} 29. Bxc1 {[%emt 0:00:08]} Nd6 {[%emt 0:00:00]} 30. Ne5+ {[%emt 0:02:30]} Kf6 {[%emt 0:00:00]} 31. g4 {[%emt 0:02:19]} Nc4 {[%emt 0:00:00]} 32. f4 {[%emt 0:00:33]} Na5 {[%emt 0:00:00]} 33. Bd2 {[%emt 0:01:26]} Nb3 {[%emt 0:00:00]} 34. Bc3 {[%emt 0:02:17]} g5 {[%emt 0:00:00]} 35. h4 {[%emt 0:02:56]} gxf4 {[%emt 0:00:00]} 36. Kf2 {[%emt 0:00:08]} Be4 {[%emt 0:00:00]} 37. Nc6 {[%emt 0:01:55]} Kf7 {[%emt 0:00:00]} 38. Na7 {[%emt 0:00:52]} Bd3 {[%emt 0:00:00]} 39. Kf3 $16 {[%emt 0:00:11]} Ke7 {[%emt 0:00:00]} 40. Nc6+ {[%emt 0:01:00]} Kd6 {[%emt 0:00:00]} 41. Nb4 {[%emt 0:02:12]} Bc4 {[%emt 0:00:00]} 42. Kxf4 {[%emt 0:00:06]} Ke7 {[%emt 0:00:00]} 43. Kg5 {[%emt 0:00:42]} Be2 {[%emt 0:00:04]} 44. Nc6+ {[%emt 0:00:39]} Kd6 {[%emt 0:00:30]} 45. Ne5 {[%emt 0:00:13]} Kd5 {[%emt 0:00:42]} 46. Nd7 {[%emt 0:00:23]} Nxd4 {[%emt 0:00:45]} 47. Nf6+ {[%emt 0:00:14]} Kc4 {[%emt 0:00:17]} 48. Bxd4 {[%emt 0:10:35]} Kxd4 {[%emt 0:00:13]} 49. Nxh7 {[%emt 0:00:08]} Bd3 {[%emt 0:03:05]} 50. Nf8 {[%emt 0:00:30]} Kc4 {[%emt 0:02:20]} 51. Nxe6 {[%emt 0:00:49]} Bb1 {[%emt 0:00:46]} 52. h5 {[%emt 0:01:13]} Kb3 {[%emt 0:00:23]} 53. Nd4+ {[%emt 0:00:05]} Kc4 {[%emt 0:00:20]} 54. Nf5 {[%emt 0:00:06]} Kb3 {[%emt 0:00:56]} 55. h6 {[%emt 0:00:05]} Kxb2 {[%emt 0:00:14]} 56. h7 {[%emt 0:00:03]} Kxa3 {[%emt 0:00:45]} 57. h8=Q {[%emt 0:00:05]} b4 {[%emt 0:00:19]} 58. Qa1+ {[%emt 0:00:05]} Ba2 {[%emt 0:00:04]} 59. Qc1+ {[%emt 0:00:17]} Kb3 {[%emt 0:00:07]} 60. Nd4# {[%emt 0:00:05]} 1-0

[Event "FIDE World Cup O10-TB 2024"]
[Site "Batumi"]
[Date "2024.07.02"]
[Round "2.6"]
[White "Mrozowski, Nikodem"]
[Black "Rahul Ramakrishnan"]
[Result "0-1"]
[ECO "C02"]
[WhiteElo "1776"]
[BlackElo "1838"]
[Annotator "NA RC"]
[PlyCount "92"]
[EventDate "2024.06.23"]
[EventType "swiss"]
[EventCountry "GEO"]
[SourceTitle "playchess.com"]
[Source "ChessBase"]
[SourceQuality "1"]
[TimeControl "5400+30"]

1. e4 {[%emt 0:00:02]} e6 {[%emt 0:00:35]} 2. d4 {[%emt 0:00:09]} d5 {[%emt 0:00:01]} 3. e5 {[%emt 0:00:24]} b6 {[%emt 0:00:09]} 4. Nf3 {[%emt 0:00:28]} Ba6 {[%emt 0:00:31]} 5. Bxa6 {[%emt 0:00:37]} Nxa6 {[%emt 0:00:01]} 6. c3 {[%emt 0:00:12]} Qd7 {[%emt 0:00:20]} 7. Qd3 {[%emt 0:00:37]} Nb8 {[%emt 0:00:25]} 8. O-O {[%emt 0:01:44]} Ne7 {[%emt 0:00:35]} 9. b3 {[%emt 0:01:16]} Nbc6 {[%emt 0:24:17]} 10. c4 {[%emt 0:06:49]} Rd8 {[%emt 0:09:46]} 11. Rd1 {[%emt 0:05:44]} Ng6 {[%emt 0:06:58]} 12. cxd5 {[%emt 0:05:23]} Qxd5 {[%emt 0:01:02]} 13. Nc3 {[%emt 0:02:53]} Qd7 {[%emt 0:00:23]} 14. Qe2 {[%emt 0:23:17]} Bb4 {[%emt 0:01:16]} 15. Ne4 {[%emt 0:01:24]} O-O {[%emt 0:02:59]} 16. Be3 {[%emt 0:01:50]} Be7 {[%emt 0:10:01]} 17. a3 {[%emt 0:08:48]} Qd5 {[%emt 0:03:51]} 18. Qc2 {[%emt 0:00:46]} Na5 {[%emt 0:02:25]} 19. Ned2 {[%emt 0:01:25]} Nb7 {[%emt 0:06:19]} 20. Nc4 {[%emt 0:09:49]} b5 {[%emt 0:06:36]} 21. Nb2 {[%emt 0:00:59]} f6 {[%emt 0:03:14]} 22. b4 {[%emt 0:03:23]} a5 {[%emt 0:02:43]} 23. bxa5 {[%emt 0:06:56]} Nxa5 {[%emt 0:00:39]} 24. Qxc7 {[%emt 0:00:25]} Nb3 {[%emt 0:00:51]} 25. exf6 {[%emt 0:00:51]} Rxf6 {[%emt 0:02:09]} 26. Rab1 {[%emt 0:01:51]} Rxf3 {[%emt 0:02:49]} 27. gxf3 {[%emt 0:00:44]} Rf8 {[%emt 0:00:53]} 28. Nd3 {[%emt 0:04:01]} Nh4 {[%emt 0:01:12]} 29. Ne1 {[%emt 0:02:31]} Bd6 {[%emt 0:03:37]} 30. Qb6 {[%emt 0:02:21]} Rb8 {[%emt 0:01:08]} 31. Qa7 {[%emt 0:01:00]} Ra8 {[%emt 0:00:36]} 32. Qb6 {[%emt 0:01:43]} Rb8 {[%emt 0:00:06]} 33. Qa7 {[%emt 0:00:22]} Ra8 {[%emt 0:00:04]} 34. Qxa8+ {[%emt 0:00:10]} Qxa8 {[%emt 0:00:06]} 35. Rxb3 {[%emt 0:00:04]} Nxf3+ {[%emt 0:00:11]} 36. Nxf3 {[%emt 0:00:27]} Qxf3 {[%emt 0:00:02]} 37. Ra1 {[%emt 0:00:53]} Qg4+ {[%emt 0:00:09]} 38. Kf1 {[%emt 0:00:14]} Bxh2 {[%emt 0:00:10]} 39. Rab1 {[%emt 0:00:47]} h5 {[%emt 0:01:01]} 40. Rxb5 {[%emt 0:00:16]} h4 {[%emt 0:00:14]} 41. Rg5 {[%emt 0:00:58]} Qf3 {[%emt 0:00:11]} 42. Rc1 {[%emt 0:02:18]} h3 {[%emt 0:00:13]} 43. a4 {[%emt 0:00:50]} Bd6 {[%emt 0:00:13]} 44. Ke1 {[%emt 0:01:36]} Bb4+ {[%emt 0:00:05]} 45. Bd2 {[%emt 0:00:04]} Bxd2+ {[%emt 0:00:05]} 46. Kxd2 {[%emt 0:00:06]} Qf4+ {[%emt 0:00:05]} 0-1